[Event "AI Cup Div-2 2023"]
[Site "Online"]
[Date "2023.09.25"]
[Round "1.2"]
[White "Antipov, Mikhail Al."]
[Black "Andreikin, Dmitry"]
[Result "1/2-1/2"]
[ECO "C07"]
[WhiteElo "2600"]
[BlackElo "2729"]
[Annotator "TA"]
[PlyCount "188"]
[EventDate "2023.09.18"]
[EventType "k.o."]
[EventCountry "NET"]
[SourceTitle "playchess.com"]
[Source "ChessBase"]
[SourceQuality "1"]
[TimeControl "900+3"]

{[%evp 29,188,73,45,20,68,82,82,33,25,24,23,24,27,20,43,0,0,0,0,0,0,0,0,0,22,21,25,21,39,20,28,14,30,23,29,10,10,13,17,0,7,0,0,0,0,0,0,0,0,0,0,0,0,-118,-129,-122,-121,-105,-101,-163,-120,-110,-112,-105,-101,-468,-461,-445,-428,-1130,-1133,-1178,-1137,-1147,-1108,-1018,-918,-1159,-1084,-900,-884,-816,-770,-660,-672,-1343,-1274,-1216,-1123,-960,-853,-777,-632,-1775,-610,-450,-410,-29980,-1234,-951,-942,-731,-684,-7538,-666,-1958,-76,-80,0,-1000,-53,-53,0,0,0,-84,-45,-45,-8,-8,0,0,0,0,0,-45,-45,-45,-45,-46,-46,-46,-46,-46,-46,-46,-45,-45,-45,-53,-45,-45,0,0,0,-45,0,0,0,0,0,0,0,0,0,0,0,0,0,0,0]} 1. e4 {[%emt 0:00:03]} e6 {[%emt 0:00:04]} 2. d4 {[%emt 0:00:01]} d5 {[%emt 0:00:01]} 3. Nd2 {[%emt 0:00:01]} c5 {[%emt 0:00:04]} 4. Ngf3 {[%emt 0:00:01]} cxd4 {[%emt 0:00:15]} 5. exd5 {[%emt 0:00:00]} Qxd5 {[%emt 0:00:43]} 6. Bc4 {[%emt 0:00:01]} Qd6 {[%emt 0:00:03]} 7. Ne4 {[%emt 0:00:01]} Qb4+ {[%emt 0:00:07]} 8. Nfd2 {[%emt 0:00:01]} Nc6 {[%emt 0:01:03]} 9. O-O {[%emt 0:00:02]} Bd7 {[%emt 0:01:09]} 10. c3 {[%emt 0:00:19]} Qb6 {[%emt 0:01:46]} 11. Bb3 {[%emt 0:06:09]} Na5 {[%emt 0:03:21]} 12. Ba4 {[%emt 0:02:42]} Rd8 {[%emt 0:00:03]} 13. b4 {[%emt 0:00:14]} Bxa4 {[%emt 0:01:21]} 14. Qxa4+ {[%emt 0:00:01]} Nc6 {[%emt 0:00:01]} 15. b5 {[%emt 0:01:36]} Ne5 {[%emt 0:00:03]} 16. Nb3 {[%emt 0:00:01]} Nd3 {[%emt 0:02:02]} (16... Nf6 $11 {deserves consideration.} 17. Nxf6+ gxf6) 17. cxd4 $14 {[%emt 0:00:09]} Nf6 {[%emt 0:00:26] [#]} 18. Nxf6+ {[%emt 0:01:05]} ({White should try} 18. Nec5 $1 $16 {[%cal Rc5d3]} Nxc1 19. Raxc1) 18... gxf6 $14 {[%emt 0:00:00]} 19. Rd1 {[%emt 0:00:03]} Nxc1 {[%emt 0:00:43]} 20. Raxc1 {[%emt 0:00:00]} Bh6 {[%emt 0:00:04]} 21. Rc3 {[%emt 0:00:12]} Rg8 {[%emt 0:00:21]} 22. g3 {[%emt 0:00:33]} (22. Rh3 {feels hotter.} Rg6 23. d5 Rxd5 24. Rxd5 exd5 25. Rd3) 22... Rg5 $1 {[%emt 0:00:06]} 23. Rc5 {[%emt 0:00:26]} Rgd5 {[%emt 0:00:16]} 24. Kg2 {[%emt 0:00:19]} Bf8 {[%emt 0:00:08]} 25. Rxd5 {[%emt 0:00:30]} Rxd5 {[%emt 0:00:00]} 26. Rc1 {[%emt 0:00:00]} Be7 {[%emt 0:00:07]} 27. Rc8+ {[%emt 0:00:11]} Rd8 {[%emt 0:00:07]} 28. Qc4 {[%emt 0:00:04]} Qd6 {[%emt 0:00:18]} 29. a4 {[%emt 0:00:52]} b6 {[%emt 0:00:48]} 30. Nd2 {[%emt 0:00:34]} f5 {[%emt 0:00:06]} 31. Nf3 {[%emt 0:00:08]} Bf6 {[%emt 0:00:01]} 32. h4 {[%emt 0:00:15]} (32. Rc6 {is more complex.} Qd5 33. Qc1 Ke7 34. Qf4) 32... Rxc8 {[%emt 0:00:26]} 33. Qxc8+ {[%emt 0:00:01]} Ke7 {[%emt 0:00:01]} 34. Qc4 {[%emt 0:00:06]} h5 {[%emt 0:00:06]} 35. Kf1 {[%emt 0:00:00]} Qd7 {[%emt 0:00:14]} 36. Ke2 {[%emt 0:00:02]} Qb7 {[%emt 0:00:00]} 37. Qb4+ {[%emt 0:00:06]} Ke8 {[%emt 0:00:02]} 38. Qc3 {[%emt 0:00:02]} Qe4+ {[%emt 0:00:02]} 39. Kf1 {[%emt 0:00:01]} Kf8 {[%emt 0:00:08]} 40. Qc8+ {[%emt 0:00:01]} Kg7 {[%emt 0:00:00]} 41. Qc3 {[%emt 0:00:01]} (41. Qc6 $1 $11) 41... f4 $17 {[%emt 0:00:07]} 42. gxf4 {[%emt 0:00:09]} Qxf4 {[%emt 0:00:00]} 43. Qe3 {[%emt 0:00:00]} Qg4 {[%emt 0:00:04]} 44. Ke1 {[%emt 0:00:07]} (44. Qd3 $17 {was the only chance.}) 44... Bxh4 $19 {[%emt 0:00:08]} 45. Nxh4 {[%emt 0:00:01]} Qxh4 {[%emt 0:00:01]} 46. Qe5+ {[%emt 0:00:00]} Kg6 {[%emt 0:00:03]} 47. Qd6 $2 {[%emt 0:00:09][%mdl 8192]} (47. Qb8 $17) 47... Qe4+ $19 {[%emt 0:00:02]} 48. Kf1 {[%emt 0:00:01]} h4 {[%emt 0:00:03]} 49. Qb8 {[%emt 0:00:05]} (49. Qd8 $142 Kh5 50. Qf6) 49... Kg7 $19 {[%emt 0:00:04]} 50. Qh2 {[%emt 0:00:04]} Qxd4 {[%emt 0:00:03]} 51. Qg2+ {[%emt 0:00:00]} Kf6 {[%emt 0:00:05]} 52. Qf3+ {[%emt 0:00:01]} Kg6 {[%emt 0:00:01]} 53. Qg2+ {[%emt 0:00:01]} Kh6 {[%emt 0:00:02]} 54. Qf3 {[%emt 0:00:01]} f5 {[%emt 0:00:03]} 55. Qc6 {[%emt 0:00:00]} Qd3+ {[%emt 0:00:04]} (55... Qxa4 56. Qxe6+ Kh5 57. Qxf5+ Kh6 58. Qf6+ Kh7 59. Qf7+ Kh8 60. Qf8+ Kh7 61. Qf7+ Kh6 62. Qf6+ Kh7 63. Qf7+ $11) 56. Kg1 {[%emt 0:00:02]} Qe4 {[%emt 0:00:00]} 57. Qe8 {[%emt 0:00:02]} Kg5 {[%emt 0:00:07]} ({Weaker is} 57... Qxa4 58. Qxe6+ Kh5 59. Qxf5+ Kh6 60. Qf6+ Kh7 61. Qf7+ Kh8 62. Qf6+ Kh7 63. Qf7+ Kh8 64. Qf6+ Kh7 $11) 58. Qe7+ {[%emt 0:00:08]} Kg4 {[%emt 0:00:03]} 59. Qg7+ {[%emt 0:00:02]} Kf3 {[%emt 0:00:07]} 60. Qc3+ {[%emt 0:00:02]} Kf4 {[%emt 0:00:06]} 61. Kh2 {[%emt 0:00:08]} Kg4 {[%emt 0:00:07]} (61... Qe2 $142 62. Kg2 h3+ 63. Qxh3 Qg4+ 64. Qxg4+ Kxg4 65. f3+ Kf4) 62. a5 $19 {[%emt 0:00:06]} bxa5 {[%emt 0:00:04]} 63. Qxa5 {[%emt 0:00:04]} (63. Qg7+ $19 Kf3 64. Qg2+ Kf4 65. Qg7) 63... Qf4+ {[%emt 0:00:01]} (63... h3 $142 64. f3+ Qxf3 65. Qa4+ f4 66. Qc2 Qg2+ 67. Qxg2+ hxg2 68. Kxg2 e5 69. Kf2 e4 70. Ke2 Kg3 71. Kd2 e3+ 72. Ke2 Kg2 73. Kd3 Kf2 74. Kd4 f3 75. Ke4 e2 76. Ke5 Kg3 77. Kd6 e1=Q 78. b6 axb6 79. Kc7 f2 80. Kd7 f1=Q 81. Kd6 Qf6+ 82. Kd7 Qee7+ 83. Kc8 Qh8#) 64. Kg1 $19 {[%emt 0:00:02]} Qc1+ {[%emt 0:00:01]} 65. Kh2 {[%emt 0:00:00] [#]} Qc5 $1 {[%emt 0:00:04]} 66. Qa2 {[%emt 0:00:06]} Qe5+ {[%emt 0:00:02]} (66... Qxb5 $142 67. Qxe6 a5) 67. Kg1 $19 {[%emt 0:00:01]} Qe1+ $2 {[%emt 0:00:01]} (67... f4 $19 {has better winning chances. ...f3 is the strong threat.} 68. Qxa7 Qxb5 69. Qg7+ Qg5) 68. Kh2 $17 {[%emt 0:00:01]} Qe5+ $2 {[%emt 0:00:01][%mdl 8192]} (68... Qf1 $17 69. Qxa7 Qxb5 70. Qd4+ f4 71. Qd1+ Kg5 72. Qd8+ Kh5 73. Qh8+ Kg4) 69. Kg1 $19 {[%emt 0:00:01]} h3 $2 {[%emt 0:00:05]} (69... f4 $19 {Strongly threatening ...f3.} 70. Qxa7 Qxb5 71. Qg7+ Qg5) 70. Qxa7 $15 {[%emt 0:00:10]} Qe1+ {[%emt 0:00:02]} ({Not} 70... Qxb5 71. Qg7+ Kf3 72. Qg3+ Ke4 73. Qxh3 $17) (70... h2+ $15 71. Kg2 h1=B+ 72. Kxh1 Qxb5) 71. Kh2 $11 {[%emt 0:00:01]} Qe5+ {[%emt 0:00:01]} (71... f4 $11) 72. Kg1 $17 {[%emt 0:00:01]} Qxb5 {[%emt 0:00:15]} 73. Qg7+ {[%emt 0:00:02]} Kf4 {[%emt 0:00:04]} (73... Kf3 $5 {[%cal Rb5b1]} 74. Qg3+ Ke4 75. Qxh3 Kd5 76. Qf3+ Kd6 77. Qf4+ Kc6 $17) 74. Qd4+ {[%emt 0:00:06]} Kg5 {[%emt 0:00:02]} 75. Qg7+ {[%emt 0:00:00]} Kh5 {[%emt 0:00:02]} 76. Qh7+ {[%emt 0:00:05]} Kg4 {[%emt 0:00:01]} 77. Qg7+ {[%emt 0:00:01]} Kf3 {[%emt 0:00:04]} 78. Qc3+ {[%emt 0:00:06]} Ke4 {[%emt 0:00:03]} 79. Qe3+ {[%emt 0:00:02]} Kd5 {[%emt 0:00:01]} 80. Qxh3 {[%emt 0:00:04]} Qb1+ {[%emt 0:00:01]} 81. Kh2 {[%emt 0:00:00]} Qe4 {[%emt 0:00:01]} 82. Qb3+ {[%emt 0:00:02]} Ke5 {[%emt 0:00:01]} 83. Qb8+ {[%emt 0:00:02]} Kd4 {[%emt 0:00:02]} 84. Qb6+ {[%emt 0:00:05]} Kd3 {[%emt 0:00:01]} 85. Kg1 {[%emt 0:00:01]} Qe1+ {[%emt 0:00:06]} 86. Kg2 {[%emt 0:00:02]} Qe4+ {[%emt 0:00:01]} 87. Kg1 {[%emt 0:00:01]} Ke2 {[%emt 0:00:06]} 88. Qb2+ {[%emt 0:00:01]} Kf3 {[%emt 0:00:05]} 89. Qc3+ {[%emt 0:00:01]} Kg4 {[%emt 0:00:00]} 90. Qg7+ {[%emt 0:00:01]} Kh5 {[%emt 0:00:07]} 91. Qh7+ {[%emt 0:00:01]} Kg5 {[%emt 0:00:01]} 92. Qg7+ {[%emt 0:00:01]} Kh5 {[%emt 0:00:01]} 93. Qh7+ {[%emt 0:00:00]} Kg5 {[%emt 0:00:00]} 94. Qg7+ {[%emt 0:00:01]} Kh5 {[%emt 0:00:01]} 1/2-1/2

[Event "AI Cup Div-2 2023"]
[Site "Online"]
[Date "2023.09.25"]
[Round "1.3"]
[White "Caruana, Fabiano"]
[Black "Gledura, Benjamin"]
[Result "1/2-1/2"]
[ECO "D45"]
[WhiteElo "2786"]
[BlackElo "2633"]
[Annotator "TA"]
[PlyCount "155"]
[EventDate "2023.09.18"]
[EventType "k.o."]
[EventCountry "NET"]
[SourceTitle "playchess.com"]
[Source "ChessBase"]
[SourceQuality "1"]
[TimeControl "900+3"]

{[%evp 10,155,13,0,31,32,56,54,67,0,18,7,0,13,0,14,24,0,0,4,8,0,1,0,0,8,5,0,0,-7,-4,0,0,0,0,-11,-16,-40,-40,-97,-69,-68,-72,-77,-72,-91,-85,-83,-69,-77,-75,-65,-79,-66,-7,-6,-12,-37,-28,-33,-44,-75,-69,-79,-73,-113,-114,-137,-149,-137,-127,-240,-243,-209,-116,-398,-418,-400,-397,-333,-251,-281,-281,-402,-391,-500,-522,-509,-499,-398,-127,-341,-352,-971,-989,-972,-961,-927,-848,-1807,-1412,-12834,-12835,-12835,-12835,-12836,-12836,-12834,0,0,0,0,0,0,0,0,0,-12841,0,0,0,0,0,0,0,0,0,0,0,0,0,0,0,0,0,0,0,0,0,0,0,0,0,0,0,0,0,0]} 1. d4 {[%emt 0:00:03]} d5 {[%emt 0:00:08]} 2. c4 {[%emt 0:00:03]} e6 {[%emt 0:00:01]} 3. Nf3 {[%emt 0:00:05]} Nf6 {[%emt 0:00:03]} 4. Nc3 {[%emt 0:00:02]} c6 {[%emt 0:00:04]} 5. e3 {[%emt 0:00:05]} Nbd7 {[%emt 0:00:05]} 6. Qc2 {[%emt 0:00:02]} a5 {[%emt 0:01:11] D45: Semi-Slav: 5 e3.} 7. b3 {[%emt 0:00:08]} a4 {[%emt 0:00:12]} 8. Nxa4 {[%emt 0:01:05]} dxc4 {[%emt 0:00:03] White is slightly better.} 9. bxc4 {[%emt 0:00:00] [#]} (9. Qxc4 $14 {is more appropriate.} Bd6 10. Be2) 9... Qa5+ $146 {[%emt 0:00:03]} ({Predecessor:} 9... e5 10. Nc3 Bb4 11. Bd2 O-O 12. Be2 Re8 13. O-O exd4 14. exd4 Nf8 15. h3 Ng6 {1-0 Zubov,A (2589)-Ivanisevic,I (2604) Titled Tuesday intern op 20th Oct blitz 2020 (3)}) 10. Nc3 {[%emt 0:00:01] Hoping for Bd2.} Ne4 {[%emt 0:00:02][%mdl 64] Deflection} 11. Bd2 {[%emt 0:00:15]} Nxd2 {[%emt 0:00:02]} 12. Nxd2 {[%emt 0:00:00]} Bb4 {[%emt 0:00:05]} 13. Rc1 {[%emt 0:00:26]} Bxc3 {[%emt 0:00:57]} 14. Qxc3 {[%emt 0:00:00]} Qxc3 {[%emt 0:00:02]} 15. Rxc3 {[%emt 0:00:01]} Rxa2 {[%emt 0:00:00]} 16. Bd3 {[%emt 0:00:01]} Ke7 {[%emt 0:00:09]} 17. Ke2 {[%emt 0:00:28]} e5 {[%emt 0:00:15]} 18. Rc2 {[%emt 0:00:12]} Ra3 {[%emt 0:00:08]} 19. Rb1 {[%emt 0:00:36]} exd4 {[%emt 0:00:05]} 20. exd4 {[%emt 0:00:01]} Rd8 {[%emt 0:00:04]} 21. Rb3 {[%emt 0:00:32]} (21. Bxh7 $2 g6 22. Kf1 Nf6 23. Re1+ Kf8 24. Bxg6 (24. Nb1 $2 Ra4 $19) 24... fxg6 $19) 21... Ra5 {[%emt 0:00:05]} 22. c5 {[%emt 0:00:48]} (22. Bxh7 g6 23. h3 Nf8 24. Re3+ Kf6 $19) 22... Nf8 {[%emt 0:00:32]} 23. Nc4 {[%emt 0:01:05]} Ra4 {[%emt 0:02:49]} 24. d5 {[%emt 0:03:29] Prevents Ne6.} cxd5 {[%emt 0:01:19]} 25. Nb6 {[%emt 0:00:36]} Ra7 {[%emt 0:00:08]} 26. Rb4 {[%emt 0:00:33]} Be6 {[%emt 0:00:13]} 27. Ke3 {[%emt 0:00:46]} Ra3 {[%emt 0:00:24]} 28. Rcb2 {[%emt 0:00:48]} Bf5 {[%emt 0:00:15]} 29. R4b3 {[%emt 0:00:02]} Rxb3 {[%emt 0:00:02]} 30. Rxb3 {[%emt 0:00:00]} Bxd3 {[%emt 0:00:01]} 31. Rxd3 $17 {[%emt 0:00:08][%mdl 4096] Endgame KRN-KRN} Ke6 {[%emt 0:00:09]} ({Black should try} 31... Ne6 $15 32. Nxd5+ Ke8) 32. Kd4 $11 {[%emt 0:00:16]} f6 {[%emt 0:00:15]} 33. f4 {[%emt 0:00:18]} Ng6 {[%emt 0:01:45]} 34. g3 {[%emt 0:00:43]} Ne7 $1 {[%emt 0:00:03]} 35. Ke3 {[%emt 0:00:49]} Nc6 {[%emt 0:00:41]} 36. Kf3 {[%emt 0:00:04]} h5 {[%emt 0:00:15]} 37. Re3+ {[%emt 0:00:09]} Kf5 {[%emt 0:00:21]} 38. Rd3 {[%emt 0:00:09] Inhibits Nd4+.} d4 {[%emt 0:00:24]} 39. Nc4 {[%emt 0:00:21]} Ke6 {[%emt 0:00:01]} 40. Rb3 {[%emt 0:00:01]} (40. Nb6 $17) 40... Kd5 $1 $19 {[%emt 0:00:12][%csl LRc4,LRc5]} 41. Nd6 {[%emt 0:00:22]} Rd7 {[%emt 0:00:04]} (41... Kxc5 42. Nxb7+ Kc4 43. Nxd8 Nxd8 44. Rb6 $18) (41... b6 $19 42. Nb7 Rd7 43. Rxb6 Re7) 42. Nxb7 {[%emt 0:00:14][%mdl 8192]} (42. Rxb7 $17 Rxb7 43. Nxb7) 42... Kc4 {[%emt 0:01:19]} 43. Rb1 {[%emt 0:00:02]} d3 {[%emt 0:00:02]} 44. Nd6+ {[%emt 0:00:23]} Kc3 {[%emt 0:00:02]} 45. Ne4+ {[%emt 0:00:19]} Kc2 {[%emt 0:00:02]} 46. Rb6 {[%emt 0:00:02]} (46. Ra1 $142 d2 47. Ra2+ Kc1 48. Nxd2 Rxd2 49. Ra6) 46... Nd4+ {[%emt 0:00:10]} (46... d2 47. Nxd2 (47. Rxc6 d1=Q+ 48. Kg2 Qe2+ 49. Kh3 g5 {[%mdl 64] Decoy} 50. fxg5 Qg4+ 51. Kg2 Qxe4+ 52. Kh3 Rd2 53. gxf6 Qg4#) 47... Rc7 48. Ke3 $11) 47. Ke3 {[%emt 0:00:25]} Nf5+ {[%emt 0:00:04]} 48. Kf3 {[%emt 0:00:00]} Re7 {[%emt 0:00:27]} 49. Nf2 {[%emt 0:00:23]} Nd4+ {[%emt 0:00:04]} 50. Kg2 {[%emt 0:00:00]} d2 $1 {[%emt 0:00:01] ( -> ...Re2)} 51. Rd6 $2 {[%emt 0:00:07]} (51. c6) 51... Nb5 {[%emt 0:00:25]} (51... d1=R 52. Nxd1 Kd3 53. Nf2+ Kc3 54. c6 $14) 52. Rd8 {[%emt 0:00:01]} Nc3 {[%emt 0:00:01]} 53. c6 {[%emt 0:00:03]} Rc7 {[%emt 0:00:29]} (53... d1=R 54. Nxd1 Nxd1 55. Rd7 $17) (53... d1=B 54. Rd7 Re8 55. c7 $15) 54. Rd6 {[%emt 0:00:01]} f5 {[%emt 0:00:06][%cal Bf6f5,Bf5e4,Be4e3][%mdl 32]} (54... d1=B $2 55. Nxd1 Nxd1 56. Kf3 $17) 55. Kf3 {[%emt 0:00:05] [#] Dodges Ne4} Ne4 $1 {[%emt 0:00:29][%mdl 512]} 56. Nxe4 {[%emt 0:00:01]} fxe4+ {[%emt 0:00:00] KR-KR} 57. Ke2 {[%emt 0:00:01] [#]} e3 $1 {[%emt 0:00:04][%mdl 512]} 58. h3 {[%emt 0:00:08] [#]} Rf7 $2 {[%emt 0:00:04]} (58... Kc1 $1 $19 {aiming for ...Ra7.} 59. g4 hxg4 60. hxg4 Ra7) 59. Rd5 $11 {[%emt 0:00:07]} Kc3 {[%emt 0:00:21]} 60. Rd6 {[%emt 0:00:02]} (60. Rxh5 Rc7 61. Rd5 (61. Kxe3 d1=Q 62. Rc5+ Kb4 {[%mdl 64] Deflection} 63. Re5 Rxc6 64. Re4+ Kb3 65. f5 Rc3+ 66. Kf4 Qd6+ {[%mdl 64] Skewer} 67. Re5 Rc4+ {[%mdl 64] Deflection} 68. Kf3 Qxe5 69. Kf2 Qxf5+ 70. Kg1 Rc1+ 71. Kg2 Qf1+ 72. Kh2 Qh1#) 61... Rxc6 $17) (60. Kxe3 $5 Re7+ $8 61. Kf3 $11) 60... Re7 {[%emt 0:00:02]} 61. Rd7 {[%emt 0:00:02]} Re6 $1 {[%emt 0:00:04] And now ...Kc2 would win.} 62. c7 {[%emt 0:00:01]} (62. Rxg7 Rd6 63. f5 d1=Q+ 64. Kxe3 Rd4 65. Re7 Qe1+ 66. Kf3 Rd3+) 62... Rc6 {[%emt 0:00:01]} 63. g4 $2 {[%emt 0:00:02][%mdl 8192] [#]} (63. Kxe3 $11 Re6+ 64. Kf2) 63... hxg4 $2 {[%emt 0:00:01]} ({Black should play} 63... Kc2 $1 $19 64. f5 Kc1 65. gxh5 Rc2 66. Kxe3 d1=Q 67. Rxd1+ Kxd1) 64. hxg4 {[%emt 0:00:00] The position is equal.} Kc2 {[%emt 0:00:04] ...Kc1 is the strong threat.} 65. f5 {[%emt 0:00:01] g5 would be deadly. Some like it hot} (65. Kxe3 $2 {perishes.} d1=Q 66. Rxd1 Kxd1 $19) (65. g5 $5 Kc1 $8 66. f5 $11 (66. Rxg7 {gets mated.} d1=Q+ 67. Kxe3 Qb3+ 68. Ke4 Re6+ 69. Kd4 Rd6+ 70. Ke4 Qd3+ 71. Ke5 Qd5#)) 65... Kc1 $1 {[%emt 0:00:03]} 66. g5 {[%emt 0:00:01] Strongly threatening f6.} (66. Rxg7 {leads to mate.} d1=Q+ 67. Kxe3 Qd2+ 68. Ke4 Qb4+ 69. Ke5 Qd6+ 70. Ke4 Rc4+ 71. Ke3 Qg3+ 72. Ke2 Re4+ 73. Kf1 Re1#) 66... Rc2 {[%emt 0:00:01]} 67. Kxe3 {[%emt 0:00:02]} d1=Q {[%emt 0:00:01]} 68. Rxd1+ {[%emt 0:00:00]} Kxd1 {[%emt 0:00:00]} 69. f6 {[%emt 0:00:04]} Rxc7 {[%emt 0:00:03]} 70. fxg7 {[%emt 0:00:02]} Rxg7 {[%emt 0:00:01] KR-KP} 71. Kf4 {[%emt 0:00:00]} Ke2 {[%emt 0:00:01]} 72. Kf5 {[%emt 0:00:01]} Kf3 {[%emt 0:00:00]} 73. g6 {[%emt 0:00:00]} Ra7 {[%emt 0:00:06]} 74. Kf6 {[%emt 0:00:02]} Kf4 {[%emt 0:00:12]} 75. g7 {[%emt 0:00:01]} Ra8 {[%emt 0:00:02] Prevents g8Q.} 76. Kf7 {[%emt 0:00:01]} Kf5 {[%emt 0:00:02]} 77. g8=Q {[%emt 0:00:01]} Rxg8 {[%emt 0:00:00]} 78. Kxg8 {[%emt 0:00:00] Weighted Error Value: White=0.59/Black=0.19 (very precise)} 1/2-1/2

[Event "AI Cup Div-2 2023"]
[Site "Online"]
[Date "2023.09.25"]
[Round "1.3"]
[White "Dominguez Perez, Leinier"]
[Black "Saric, Ivan"]
[Result "0-1"]
[ECO "B12"]
[WhiteElo "2745"]
[BlackElo "2647"]
[Annotator "TA"]
[PlyCount "116"]
[EventDate "2023.09.18"]
[EventType "k.o."]
[EventCountry "NET"]
[SourceTitle "playchess.com"]
[Source "ChessBase"]
[SourceQuality "1"]
[TimeControl "900+3"]

{[%evp 12,116,22,27,29,39,58,0,0,11,12,-3,-8,-3,-4,-10,-16,-57,-60,-61,-60,-58,-57,-51,-56,-57,-58,-58,-51,-50,-50,-67,-79,-111,-69,-90,-71,-68,-51,-53,-58,-86,-75,-78,-80,-79,-85,-77,-73,-112,-112,-112,-112,-112,-63,-70,-70,-112,-104,-112,-112,-117,-117,-474,-282,-468,-476,-620,-526,-425,-261,-253,-257,-246,-245,-260,-252,-362,-338,-29987,-12838,-12839,-12839,-12839,-12840,-12840,-12841,-12841,-12838,-12839,-12840,-12840,-12841,-12841,-12841,-12842,-12842,-12843,-12843,-12843,-12843,-12843,-12844,-12844,-12845,-12847,-12847]} 1. e4 {[%emt 0:00:03]} c6 {[%emt 0:00:04]} 2. d4 {[%emt 0:00:02]} d5 {[%emt 0:00:00]} 3. e5 {[%emt 0:00:00]} Bf5 {[%emt 0:00:02]} 4. Nf3 {[%emt 0:00:01]} e6 {[%emt 0:00:00]} 5. Be2 {[%emt 0:00:02]} Ne7 {[%emt 0:00:09]} 6. O-O {[%emt 0:00:15]} Nd7 {[%emt 0:00:03]} 7. Nbd2 {[%emt 0:00:05]} Ng6 {[%emt 0:00:18] B12: Caro-Kann: Advance Variation.} 8. Nb3 {[%emt 0:00:37]} f6 {[%emt 0:00:49][%cal Rf6e5] [#]} 9. Be3 $146 {[%emt 0:02:56]} (9. Ne1 $14) ({Predecessor:} 9. Re1 fxe5 10. dxe5 Bc5 11. Nfd4 O-O 12. Nxc5 Nxc5 13. Be3 Qe7 14. f4 Be4 15. g3 {0-1 Salem,A (2677)-Iordachescu,V (2584) UAE National Day 51st rapid 2022 (7)}) 9... fxe5 $11 {[%emt 0:01:13] The position is equal.} 10. dxe5 {[%emt 0:00:22]} Ngxe5 {[%emt 0:00:25]} 11. Nxe5 {[%emt 0:02:39]} Nxe5 {[%emt 0:00:00]} 12. Nd4 {[%emt 0:00:01]} Bd6 {[%emt 0:00:52]} 13. Nxf5 {[%emt 0:01:30]} exf5 {[%emt 0:00:03]} 14. c4 {[%emt 0:00:01]} O-O {[%emt 0:01:46]} 15. cxd5 {[%emt 0:00:03]} f4 {[%emt 0:00:01]} 16. Bd4 {[%emt 0:03:52]} f3 $1 {[%emt 0:00:04] [#] ...Qg5 would be deadly.} (16... cxd5 17. Re1 $11 (17. Qb3 f3 $11)) 17. Bxe5 $1 {[%emt 0:00:07][%cal Oe2c4] Bc4! is the strong threat.} fxg2 {[%emt 0:00:14]} (17... Bxe5 18. Bxf3 Rb8 19. Re1 $14 (19. dxc6 bxc6 20. Rb1 Qf6 $14)) 18. Kxg2 {[%emt 0:00:32] Strongly threatening Bg3.} Bxe5 {[%emt 0:00:04]} 19. dxc6 {[%emt 0:00:23] White is weak on the dark squares} Qg5+ {[%emt 0:00:19]} (19... Bxb2 $2 20. cxb7 Bxa1 21. Qb3+ Kh8 22. bxa8=R Qxa8+ 23. Bf3 Qxf3+ 24. Qxf3 Rxf3 25. Kxf3 $18) 20. Kh1 {[%emt 0:00:03]} bxc6 {[%emt 0:00:25][%cal Og5f4]} 21. Qb3+ {[%emt 0:00:11]} Kh8 {[%emt 0:00:02]} 22. Qh3 {[%emt 0:00:01] Against Qh4} Rf6 {[%emt 0:00:21][%cal Of6h6] White must now prevent ...Rh6! Black is much more active.} 23. Qg4 {[%emt 0:00:30]} Qh6 {[%emt 0:00:18][%csl Ge5][%cal Rh6h2]} 24. f4 {[%emt 0:00:54]} Rxf4 {[%emt 0:01:05]} 25. Rxf4 {[%emt 0:00:04]} Bxf4 {[%emt 0:00:00][%csl Gf4][%cal Rh6h2]} 26. Qg2 {[%emt 0:00:08]} Rd8 {[%emt 0:00:35]} 27. Rd1 {[%emt 0:00:08]} Rxd1+ {[%emt 0:01:19]} 28. Bxd1 $17 {[%emt 0:00:01][%mdl 4096] Endgame KQB-KQB} Qh4 {[%emt 0:00:14]} 29. Qe2 {[%emt 0:00:19][%cal Re2e8] Repels Qe1+} g6 {[%emt 0:00:10]} 30. Bb3 {[%emt 0:00:29]} Kg7 {[%emt 0:00:04]} 31. Bc2 {[%emt 0:00:06]} c5 {[%emt 0:00:11][%cal Oc5c4]} 32. b3 {[%emt 0:00:03]} Kh6 {[%emt 0:00:06]} (32... Bd6 $17 33. Bd3 Qd4) 33. Be4 {[%emt 0:00:06]} Qf6 {[%emt 0:00:31]} 34. Bf3 {[%emt 0:00:04]} Kg7 {[%emt 0:00:12]} 35. Kg2 {[%emt 0:00:01]} h5 {[%emt 0:00:07][%cal Bh7h5,Bh5h4][%mdl 32]} 36. Be4 {[%emt 0:00:06]} Qh4 {[%emt 0:00:06]} 37. Qf3 $2 {[%emt 0:00:05][%mdl 8192] This move loses the game for White.} (37. Qb2+ $17 Kh7 38. Qf2 Qxh2+ 39. Kf3) 37... Qxh2+ $19 {[%emt 0:00:04]} ({Not} 37... Bxh2 38. Qc3+ Kh7 39. Qd3 $17) 38. Kf1 {[%emt 0:00:01]} Qg3 {[%emt 0:00:41] Threatens to win with ...Qxf3+.} ({Avoid the trap} 38... Qd2 $2 39. Bd3 Qc1+ 40. Kg2 $19) 39. Qe2 {[%emt 0:00:01]} Be3 {[%emt 0:00:06][%csl Ge3][%cal Rg3g1]} 40. Bg2 {[%emt 0:00:02]} h4 {[%emt 0:00:11] And now ...h3 would win.} 41. Qf3 {[%emt 0:00:03]} Qe5 {[%emt 0:00:33]} 42. Qe4 {[%emt 0:00:01]} Qa1+ {[%emt 0:00:17]} 43. Ke2 {[%emt 0:00:02] aiming for Qe7+.} Bg5 {[%emt 0:00:09] Inhibits Qe7+.} ({And not} 43... Qxa2+ 44. Kxe3 Qxb3+ 45. Ke2 $17) 44. Qb7+ {[%emt 0:00:07]} (44. Qc2 $142) 44... Kh6 {[%emt 0:00:03] ( -> ...Qb2+)} 45. Be4 $2 {[%emt 0:00:08] [#]} (45. Qf3 $19 Qxa2+ 46. Kf1 Qa1+ 47. Ke2) 45... Qxa2+ {[%emt 0:00:09]} (45... Qb2+ $142 46. Bc2 Qxc2+ 47. Ke1 Qd2+ 48. Kf1 Qd3+ 49. Kg1 Be3+ 50. Kg2 h3+ 51. Kg3 Bd2+ 52. Kg4 Be1 53. Qh7+ Kxh7 54. Kf4 Bg3+ 55. Kg4 Bf2 56. Kg5 Qf5#) 46. Kd3 {[%emt 0:00:02] Black is clearly winning.} Qd2+ {[%emt 0:00:06]} 47. Kc4 {[%emt 0:00:01]} Qd4+ {[%emt 0:00:03]} 48. Kb5 {[%emt 0:00:01]} Qb4+ {[%emt 0:00:06]} 49. Ka6 {[%emt 0:00:01]} Qxb7+ {[%emt 0:00:40]} 50. Bxb7 {[%emt 0:00:03] KB-KB} Be3 {[%emt 0:00:00]} 51. Kb5 {[%emt 0:00:02]} Kg5 {[%emt 0:00:03]} 52. Kc4 {[%emt 0:00:01]} Kf4 {[%emt 0:00:00]} 53. Kd3 {[%emt 0:00:01]} g5 {[%emt 0:00:03][%cal Bg6g5,Bg5g4][%mdl 32]} 54. Ke2 {[%emt 0:00:02]} g4 {[%emt 0:00:02]} 55. Bc8 {[%emt 0:00:00]} Bd4 {[%emt 0:00:27]} 56. Bd7 {[%emt 0:00:02]} h3 {[%emt 0:00:01]} 57. Bc8 {[%emt 0:00:01]} Kg3 {[%emt 0:00:03]} 58. Kf1 {[%emt 0:00:11]} Kh4 {[%emt 0:00:02] Weighted Error Value: White=0.44/Black=0.25 (precise)} 0-1